fUSD/lending_fUSD_20260414
["ID","MTS","AMOUNT","RATE_DAILY","PERIOD"]
[420485427,1776150123305,-2416.64,0.00045201,120]
[420485428,1776150123335,-2416.64,0.00045201,120]
[420485429,1776150123368,-2416.64,0.00045201,120]
[420485430,1776150123416,-2416.64,0.00045201,120]
[420485431,1776150123445,-2416.64,0.00045201,120]
[420485432,1776150123484,-2416.64,0.00045201,120]
[420485433,1776150123520,-2416.35816859,0.00045201,120]
[420485434,1776150123575,-1000.0,0.00045201,30]
[420485435,1776150123614,-992.49651166,0.00045201,120]
[420485436,1776150123678,-1000.0,0.00045201,60]
[420485437,1776150123724,-1000.0,0.00045201,60]
[420485438,1776150123760,-1116.0,0.00045201,30]
[420485439,1776150123799,-1116.0,0.00045201,30]
[420485440,1776150123846,-1116.0,0.00045201,30]
[420485441,1776150123873,-1000.0,0.00045201,60]
[420485442,1776150123915,-1116.0,0.00045201,30]
[420485443,1776150123947,-1116.0,0.00045201,30]
[420485444,1776150123985,-1116.0,0.00045201,30]
[420485445,1776150124015,-183.33,0.00045201,30]
[420485446,1776150124069,-1116.0,0.00045201,30]
[420485447,1776150124131,-1116.0,0.00045201,30]
[420485448,1776150124177,-1116.0,0.00045201,30]
[420485449,1776150124220,-1116.0,0.00045201,30]
[420485450,1776150124253,-1000.0,0.00045201,30]
[420485451,1776150124281,-1116.0,0.00045201,30]
[420485452,1776150124307,-1116.0,0.00045201,30]
[420485453,1776150124334,-1116.0,0.00045201,30]
[420485454,1776150124363,-1116.0,0.00045201,30]
[420485455,1776150124394,-1116.0,0.00045201,30]
[420485456,1776150124430,-1116.0,0.00045201,30]
[420485457,1776150124465,-170.5912026,0.00045201,120]
[420485458,1776150124502,-187.5,0.00045201,120]
[420485459,1776150124528,-202.5,0.00045201,120]
[420485460,1776150124565,-187.5,0.00045201,120]
[420485461,1776150124594,-1000.0,0.00045201,120]
[420485462,1776150124623,-187.5,0.00045201,120]
[420485463,1776150124657,-1116.0,0.00045201,30]
[420485464,1776150124688,-212.0480169,0.00045201,120]
[420485465,1776150124715,-702.41191094,0.00045201,120]
[420485466,1776150124758,-7747.55304054,0.00045201,90]
[420485467,1776150124797,-226.6,0.00045201,120]
[420485468,1776150124834,-1684.60775966,0.00045201,30]
[420485469,1776150124873,-6999.999999,0.00045201,120]
[420485470,1776150124923,-552.67594813,0.00045201,30]
[420485471,1776150124960,-413.21732121,0.00045201,30]
[420485472,1776150125012,-2550.71200143,0.00045201,120]
[420485473,1776150125051,-3124.92216476,0.00045201,91]
[420485474,1776150125108,-1559.17791449,0.00045201,30]
[420485475,1776150125148,-954.38343971,0.00045201,30]
[420485476,1776150125179,-1000.0,0.00045201,60]
[420485477,1776150125224,-1222.97116714,0.00045201,30]
[420485478,1776150125270,-3100.26704579,0.00045201,30]
[420485479,1776150125301,-2655.79375994,0.00045201,30]
[420485480,1776150125335,-5813.00166634,0.00045201,30]
[420485481,1776150125366,-3147.21493268,0.00045201,120]
[420485482,1776150125391,-196.51777238,0.00045201,120]
[420485483,1776150125431,-720.5804831,0.00045201,120]
[420485484,1776150125457,-2209.73341924,0.00045201,30]
[420485485,1776150125494,-3751.07952436,0.00045201,30]
[420485486,1776150125526,-805.19326577,0.00045201,30]
[420485487,1776150125557,-3149.82834917,0.00045201,120]
[420485488,1776150125602,-3116.50250595,0.00045201,120]
[420485489,1776150125650,-169.53584399,0.00045201,120]
[420485490,1776150125694,-638.19,0.00045201,30]
[420485491,1776150125734,-3006.43211285,0.00045201,60]
[420485492,1776150125801,-1650.74459902,0.00045201,120]
[420485493,1776150125834,-7233.77201299,0.00045201,31]
[420485494,1776150125874,-2148.1954466,0.00045201,30]
[420485495,1776150125917,-3241.0504792,0.00045201,120]
[420485496,1776150125956,-2825.82069794,0.00045201,120]
[420485497,1776150125994,-2640.5601254,0.00045201,120]
[420485498,1776150126023,-153.73,0.00045201,30]
[420485499,1776150126054,-9391.10393829,0.00045201,30]
[420485500,1776150126088,-2500.0,0.00045201,30]
[420485501,1776150126119,-2072.65519138,0.00045201,120]
[420485502,1776150126157,-1057.24369782,0.00045201,120]
[420485503,1776150126513,-3104.33701861,0.00045201,120]
[420485504,1776150126566,-1200.50259127,0.00045201,120]
[420485505,1776150126614,-934.58737463,0.00045201,30]
[420485506,1776150126669,-242.47464688,0.00045201,120]
[420485507,1776150126711,-8200.5682789,0.00045201,30]
[420485508,1776150126741,-2376.44526344,0.00045201,30]
[420485509,1776150126772,-1100.0,0.00045201,120]
[420485510,1776150126798,-8047.50615062,0.00045201,60]
[420485511,1776150126828,-943.72137394,0.00045201,30]
[420485512,1776150126857,-341.36024456,0.00045201,120]
[420485513,1776150126883,-6928.21935287,0.00045201,90]
[420485514,1776150126918,-477.85,0.00045201,30]
[420485515,1776150126946,-436.57144059,0.00045201,120]
[420485516,1776150126972,-983.58145185,0.00045201,120]
[420485517,1776150127003,-3176.55978659,0.00045201,120]
[420485518,1776150127035,-355.1950341,0.00045201,120]
[420485519,1776150127065,-1015.9628697,0.00045201,30]
[420485520,1776150127110,-1157.64745553,0.00045201,120]
[420485521,1776150127143,-956.22507801,0.00045201,60]
[420485522,1776150127190,-1700.63738611,0.00045201,120]
[420485523,1776150127267,-1886.08693616,0.00045201,120]
[420485524,1776150127316,-508.11590356,0.00045201,120]
[420485525,1776150127353,-228.54257709,0.00045201,120]
[420485526,1776150127394,-2667.76101923,0.00045201,30]
[420485527,1776150127433,-1511.91939033,0.00045201,120]
[420485528,1776150127468,-225.10241036,0.00045201,30]
[420485529,1776150127499,-1049.86867204,0.00045201,30]
[420485530,1776150127535,-3237.1037185,0.00045201,120]
[420485531,1776150127576,-218.44,0.00045201,30]
[420485532,1776150127609,-151.0,0.00045201,30]
[420485533,1776150127645,-196.17861854,0.00045201,120]
[420485534,1776150127683,-3050.98675499,0.00045201,120]
[420485535,1776150127728,-471.19404799,0.00045201,60]
[420485536,1776150127763,-361.43674491,0.00045201,120]
[420485537,1776150127798,-298.63014828,0.00045201,120]
[420485538,1776150127835,-2057.95999401,0.00045201,30]
[420485539,1776150127863,-3031.94176896,0.00045201,120]
[420485540,1776150127895,-283.33263445,0.00045201,120]
[420485541,1776150127923,-380.88708189,0.00045201,30]
[420485542,1776150127960,-9349.45973255,0.00045201,30]
[420485543,1776150128009,-509.81685208,0.00045201,120]
[420485544,1776150128049,-638.19,0.00045201,30]
[420485545,1776150128131,-218.6,0.00045201,30]
[420485546,1776150128170,-183.35,0.00045201,30]
[420485547,1776150128231,-151.0,0.00045201,30]
[420485548,1776150128279,-1266.29465304,0.00045201,120]
[420485549,1776150128309,-786.60655584,0.00045201,120]
[420485550,1776150128355,-1092.69731277,0.00045201,30]
[420485551,1776150128400,-2246.88653506,0.00045201,60]
[420485552,1776150128451,-298.03168363,0.00045201,120]
[420485553,1776150128494,-1692.77737403,0.00045201,120]
[420485554,1776150128536,-185.45617168,0.00045201,30]
[420485555,1776150128573,-2355.02665259,0.00045201,120]
[420485556,1776150128614,-1000.0,0.00045201,31]
[420485557,1776150128649,-1000.0,0.00045201,31]
[420485558,1776150128678,-1000.0,0.00045201,31]
[420485559,1776150128711,-1000.0,0.00045201,31]
[420485560,1776150128749,-1000.0,0.00045201,31]
[420485561,1776150128777,-1000.0,0.00045201,31]
[420485562,1776150128805,-1000.0,0.00045201,31]
[420485563,1776150128831,-1000.0,0.00045201,31]
[420485564,1776150128860,-1000.0,0.00045201,31]
[420485565,1776150128892,-762.6105112,0.00045201,120]
[420485566,1776150128923,-1000.0,0.00045201,31]
[420485567,1776150128954,-1000.0,0.00045201,31]
[420485568,1776150128982,-1000.0,0.00045201,31]
[420485569,1776150129012,-1000.0,0.00045201,31]
[420485570,1776150129039,-1000.0,0.00045201,31]
[420485571,1776150129076,-1000.0,0.00045201,31]
[420485572,1776150129109,-1000.0,0.00045201,31]
[420485573,1776150129147,-1000.0,0.00045201,31]
[420485574,1776150129179,-1000.0,0.00045201,31]
[420485575,1776150129210,-1000.0,0.00045201,31]
[420485576,1776150129237,-1000.0,0.00045201,31]
[420485577,1776150129273,-1000.0,0.00045201,31]
[420485578,1776150129305,-568.02,0.00045201,30]
[420485579,1776150129347,-1000.0,0.00045201,31]
[420485580,1776150129390,-1000.0,0.00045201,31]
[420485581,1776150129466,-1000.0,0.00045201,31]
[420485582,1776150129528,-1000.0,0.00045201,31]
[420485583,1776150129587,-1000.0,0.00045201,31]
[420485584,1776150129628,-1000.0,0.00045201,31]
[420485585,1776150129684,-1310.92484818,0.00045201,120]
[420485586,1776150129729,-1000.0,0.00045201,31]
[420485587,1776150129775,-1000.0,0.00045201,31]
[420485588,1776150129816,-1000.0,0.00045201,31]
[420485589,1776150129857,-1000.0,0.00045201,31]
[420485590,1776150129891,-1000.0,0.00045201,31]
[420485591,1776150129924,-1000.0,0.00045201,31]
[420485592,1776150129972,-1000.0,0.00045201,31]
[420485593,1776150130009,-1000.0,0.00045201,31]
[420485594,1776150130055,-1000.0,0.00045201,31]
[420485595,1776150130088,-1000.0,0.00045201,31]
[420485596,1776150130134,-1000.0,0.00045201,31]
[420485597,1776150130489,-1000.0,0.00045201,31]
[420485598,1776150130524,-1000.0,0.00045201,31]
[420485599,1776150130559,-1000.0,0.00045201,31]
[420485600,1776150130592,-1000.0,0.00045201,31]
[420485601,1776150130631,-1000.0,0.00045201,31]
[420485602,1776150130689,-1000.0,0.00045201,31]
[420485603,1776150130726,-1000.0,0.00045201,31]
[420485604,1776150130782,-1000.0,0.00045201,31]
[420485605,1776150130819,-1000.0,0.00045201,31]
[420485606,1776150130856,-1000.0,0.00045201,31]
[420485607,1776150130913,-1000.0,0.00045201,31]
[420485608,1776150130963,-1000.0,0.00045201,31]
[420485609,1776150130991,-1000.0,0.00045201,31]
[420485610,1776150131032,-1000.0,0.00045201,31]
[420485611,1776150131070,-1000.0,0.00045201,31]
[420485612,1776150131114,-1000.0,0.00045201,31]
[420485613,1776150131158,-1000.0,0.00045201,31]
[420485614,1776150131191,-1000.0,0.00045201,31]
[420485615,1776150131233,-1000.0,0.00045201,31]
[420485616,1776150131271,-1000.0,0.00045201,31]
[420485617,1776150131315,-1690.33227867,0.00045201,120]
[420485618,1776150131342,-1000.0,0.00045201,31]
[420485619,1776150131387,-1000.0,0.00045201,31]
[420485620,1776150131430,-1000.0,0.00045201,31]
[420485621,1776150131482,-1000.0,0.00045201,31]
[420485622,1776150131522,-1000.0,0.00045201,31]
[420485623,1776150131559,-1000.0,0.00045201,31]
[420485624,1776150131597,-1000.0,0.00045201,31]
[420485625,1776150131637,-1000.0,0.00045201,31]
[420485626,1776150131670,-1000.0,0.00045201,31]
[420485627,1776150131721,-1000.0,0.00045201,31]
[420485628,1776150131778,-1000.0,0.00045201,31]
[420485629,1776150131813,-1000.0,0.00045201,31]
[420485630,1776150131865,-1000.0,0.00045201,31]
[420485631,1776150131904,-1000.0,0.00045201,31]
[420485632,1776150131942,-1000.0,0.00045201,31]
[420485633,1776150131978,-1000.0,0.00045201,31]
[420485634,1776150132011,-1000.0,0.00045201,31]
[420485635,1776150132039,-1000.0,0.00045201,31]
[420485636,1776150132070,-1000.0,0.00045201,31]
[420485637,1776150132100,-1000.0,0.00045201,31]
[420485638,1776150132127,-1000.0,0.00045201,31]
[420485639,1776150132160,-1000.0,0.00045201,31]
[420485640,1776150132189,-1000.0,0.00045201,31]
[420485641,1776150132217,-1000.0,0.00045201,31]
[420485642,1776150132245,-1000.0,0.00045201,31]
[420485643,1776150132279,-673.18318,0.00045201,60]
[420485644,1776150132309,-3318.13561,0.00045201,60]
[420485645,1776150132346,-3318.13561,0.00045201,60]
[420485646,1776150132396,-673.18318,0.00045201,60]
[420485647,1776150132433,-3318.13561,0.00045201,60]
[420485648,1776150132476,-673.18318,0.00045201,60]
[420485649,1776150132527,-167.38,0.00045201,120]
[420485650,1776150132568,-3318.13561,0.00045201,60]
[420485651,1776150132633,-673.18318,0.00045201,60]
[420485652,1776150132669,-673.18318,0.00045201,60]
[420485653,1776150132713,-3318.13561,0.00045201,60]
[420485654,1776150132792,-1105.11318957,0.00045201,30]
[420485655,1776150132842,-167.38,0.00045201,120]
[420485656,1776150132920,-167.38,0.00045201,120]
[420485657,1776150133005,-1468.16951571,0.00045201,120]
[420485658,1776150133083,-167.38,0.00045201,120]
[420485659,1776150133131,-3394.55093092,0.00045201,120]
[420485660,1776150133168,-284.25628671,0.00045201,120]
[420485661,1776150133209,-167.38,0.00045201,120]
[420485662,1776150133242,-167.38,0.00045201,120]
[420485663,1776150133271,-1000.0,0.00045201,31]
[420485664,1776150133303,-1278.01676168,0.00045201,120]
[420485665,1776150133336,-1000.0,0.00045201,31]
[420485666,1776150133372,-30297.07442224,0.00045201,120]
[420485667,1776150133405,-1000.0,0.00045201,31]
[420485668,1776150133451,-1000.0,0.00045201,31]
[420485669,1776150133483,-1000.0,0.00045201,31]
[420485670,1776150133517,-1000.0,0.00045201,31]
[420485671,1776150133551,-1000.0,0.00045201,31]
[420485672,1776150133600,-1000.0,0.00045201,31]
[420485673,1776150133637,-1000.0,0.00045201,31]
[420485674,1776150133673,-2002.98809179,0.00045201,120]
[420485675,1776150133708,-1000.0,0.00045201,31]
[420485676,1776150133764,-1000.0,0.00045201,31]
[420485677,1776150133797,-1000.0,0.00045201,31]
[420485678,1776150133830,-1769.11931738,0.00045201,30]
[420485679,1776150133866,-1269.1501241,0.00045201,120]
[420485680,1776150133900,-180.16076806,0.00045201,120]
[420485681,1776150133931,-2563.9676435,0.00045201,120]
[420485682,1776150133998,-239.40236777,0.00045201,120]
[420485683,1776150134040,-231.19008871,0.00045201,120]
[420485684,1776150134069,-2692.05101416,0.00045201,120]
[420485685,1776150134102,-260.30676742,0.00045201,120]
[420485686,1776150134139,-450.90207223,0.00045201,120]
[420485687,1776150134187,-152.89409043,0.00045201,120]
[420485688,1776150134257,-639.0636179,0.00045201,30]
[420485689,1776150134305,-391.98117157,0.00045201,120]
[420485690,1776150134353,-2294.26555322,0.00045201,120]
[420485691,1776150134890,-997.0,0.00045201,30]
[420485692,1776150134920,-3413.06173509,0.00045201,120]
[420485693,1776150134968,-3191.9115923,0.00045201,120]
[420485694,1776150135009,-269.56686147,0.00045201,120]
[420485695,1776150135047,-8249.50166577,0.00045201,120]
[420485696,1776150135086,-168.01,0.00045201,120]
[420485697,1776150135130,-257.50497938,0.00045201,30]
[420485698,1776150135170,-168.01,0.00045201,120]
[420485699,1776150135202,-293.11700081,0.00045201,120]
[420485700,1776150135237,-1159.65646756,0.00045201,30]
[420485701,1776150135278,-168.01,0.00045201,120]
[420485702,1776150135325,-4939.24845684,0.00045201,30]
[420485703,1776150135367,-168.01,0.00045201,120]
[420485704,1776150135398,-168.01,0.00045201,120]
[420485705,1776150135436,-421.72825262,0.00045201,120]
[420485706,1776150135491,-509.35298336,0.00045201,120]
[420485707,1776150135547,-168.01,0.00045201,120]
[420485708,1776150135607,-493.19467111,0.00045201,30]
[420485709,1776150135663,-168.02,0.00045201,120]
[420485710,1776150135716,-237.82765739,0.00045201,120]
[420485711,1776150135789,-965.57382813,0.00045201,30]
[420485712,1776150135831,-2692.14436453,0.00045201,120]
[420485713,1776150135887,-3215.21607859,0.00045201,120]
[420485714,1776150135914,-1686.30613955,0.00045201,120]
[420485715,1776150135959,-2113.29311585,0.00045201,120]
[420485716,1776150135995,-1115.69314618,0.00045201,120]
[420485717,1776150136024,-2355.51373734,0.00045201,120]
[420485718,1776150136067,-616.71443511,0.00045201,120]
[420485719,1776150136129,-1958.68741048,0.00045201,60]
[420485720,1776150136182,-1227.52383956,0.00045201,120]
[420485721,1776150136238,-272.33092568,0.00045201,120]
[420485722,1776150136277,-653.55137817,0.00045201,120]
[420485723,1776150136320,-739.09977231,0.00045201,120]
[420485724,1776150136379,-218.52,0.00045201,30]
[420485725,1776150136420,-1432.82343337,0.00045201,120]
[420485726,1776150136468,-2270.05907097,0.00045201,120]
[420485727,1776150136503,-824.21116653,0.00045201,120]
[420485728,1776150136535,-2868.62559761,0.00045201,120]
[420485729,1776150136579,-259.65227776,0.00045201,120]
[420485730,1776150136623,-235.16819048,0.00045201,120]
[420485731,1776150136670,-683.62283485,0.00045201,120]
[420485732,1776150136709,-167.37481943,0.00045201,30]
[420485733,1776150136746,-1416.30255707,0.00045201,120]
[420485734,1776150136786,-1601.47427474,0.00045201,30]
[420485735,1776150136827,-5212.23902162,0.00045201,30]
[420485736,1776150136877,-288.88318917,0.00045201,30]
[420485737,1776150136919,-4104.1166591,0.00045201,30]
[420485738,1776150136974,-2995.17113942,0.00045201,30]
[420485739,1776150137043,-3378.02861146,0.00045201,120]
[420485740,1776150137076,-1523.00113529,0.00045201,120]
[420485741,1776150137110,-6150.43116863,0.00045201,30]
[420485742,1776150137155,-438.05122939,0.00045201,120]
[420485743,1776150137203,-5164.57524486,0.00045201,30]
[420485744,1776150137239,-1949.74942378,0.00045201,30]
[420485745,1776150137277,-283.28486443,0.00045201,120]
[420485746,1776150137307,-2588.58266014,0.00045201,30]
[420485747,1776150137343,-2595.37275453,0.00045201,120]
[420485748,1776150137372,-6837.29771964,0.00045201,30]
[420485749,1776150137412,-302.38297569,0.00045201,120]
[420485750,1776150137447,-773.33116614,0.00045201,120]
[420485751,1776150137487,-130406.82761354,0.00045201,120]
[420485752,1776150137523,-813.15130689,0.00045201,30]
[420485753,1776150137562,-1029.00047047,0.00045201,120]
[420485754,1776150137596,-2636.27857343,0.00045201,30]
[420485755,1776150137629,-12320.61168805,0.00045201,60]
[420485756,1776150137669,-1447.7885838,0.00045201,120]
[420485757,1776150137737,-1430.38196666,0.00045201,120]
[420485758,1776150137799,-756.0,0.00045201,120]
[420485759,1776150137835,-2176.74381388,0.00045201,120]
[420485760,1776150137875,-418.82685993,0.00045201,120]
[420485761,1776150137910,-2989.15938676,0.00045201,120]
[420485762,1776150137948,-2482.7674288,0.00045201,30]
[420485763,1776150137995,-1092.93201999,0.00045201,120]
[420485764,1776150138025,-527.00264676,0.00045201,120]
[420485765,1776150138064,-155.09564414,0.00045201,30]
[420485766,1776150138096,-161.86576757,0.00045201,120]
[420485767,1776150138130,-12580.399999,0.00045201,30]
[420485768,1776150138164,-184.00188679,0.00045201,120]
[420485769,1776150138194,-854.02751118,0.00045201,120]
[420485770,1776150138224,-1556.03989384,0.00045201,120]
[420485771,1776150138272,-563.87724368,0.00045201,120]
[420485772,1776150138334,-1783.87589266,0.00045201,30]
[420485773,1776150138388,-230.58509519,0.00045201,120]
[420485774,1776150138429,-639.50619067,0.00045201,120]
[420485775,1776150138488,-1788.90000386,0.00045201,120]
[420485776,1776150138522,-152.38396905,0.00045201,120]
[420485777,1776150138560,-631.29,0.00045201,120]
[420485778,1776150138594,-1133.44108504,0.00045201,30]
[420485779,1776150138634,-631.29,0.00045201,120]
[420485780,1776150138664,-411.32604467,0.00045201,120]
[420485781,1776150138694,-2610.12879258,0.00045201,120]
[420485782,1776150138727,-2807.2036964,0.00045201,30]
[420485783,1776150138763,-1967.36366554,0.00045201,120]
[420485784,1776150138809,-163.52088331,0.00045201,30]
[420485785,1776150138845,-190.58063973,0.00045201,120]
[420485786,1776150139358,-30483.02779365,0.00045201,30]
[420485787,1776150139406,-11167.42815714,0.00045201,30]
[420485788,1776150139456,-1284.13897216,0.00045201,120]
[420485789,1776150139495,-2121.98594073,0.00045201,120]
[420485790,1776150139532,-187.28505133,0.00045201,30]
[420485791,1776150139574,-200.44272848,0.00045201,120]
[420485792,1776150139619,-1146.35547029,0.00045201,120]
[420485793,1776150139653,-241.93904525,0.00045201,120]
[420485794,1776150139693,-2151.03559782,0.00045201,30]
[420485795,1776150139724,-3420.27917006,0.00045201,120]
[420485796,1776150139767,-631.29,0.00045201,120]
[420485797,1776150139801,-1289.1876578,0.00045201,30]
[420485798,1776150139839,-2817.18976796,0.00045201,120]
[420485799,1776150139877,-279.6613131,0.00045201,120]
[420485800,1776150139913,-1686.58481513,0.00045201,120]
[420485801,1776150139945,-386.89917809,0.00045201,30]
[420485802,1776150139978,-1530.53354094,0.00045201,120]
[420485803,1776150140018,-490.90930356,0.00045201,120]
[420485804,1776150140051,-529.93582283,0.00045201,120]
[420485805,1776150140093,-1240.42023883,0.00045201,120]
[420485806,1776150140137,-2652.17828196,0.00045201,120]
[420485807,1776150140180,-1790.50544094,0.00045201,120]
[420485808,1776150140222,-2461.84995739,0.00045201,30]
[420485809,1776150140273,-486.84855319,0.00045201,120]
[420485810,1776150140325,-631.29,0.00045201,120]
[420485811,1776150140370,-765.22736585,0.00045201,120]
[420485812,1776150140411,-503.29981319,0.00045201,30]
[420485813,1776150140440,-500.0,0.00045201,120]
[420485814,1776150140493,-1525.69472411,0.00045201,120]
[420485815,1776150140563,-1633.23461486,0.00045201,120]
[420485816,1776150140680,-952.05792665,0.00045201,120]
[420485817,1776150140729,-175.89596906,0.00045201,30]
[420485818,1776150140778,-174.58841029,0.00045201,30]
[420485819,1776150140825,-309.36788438,0.00045201,120]
[420485820,1776150140857,-200.77686865,0.00045201,35]
[420485821,1776150140891,-1707.36677347,0.00045201,120]
[420485822,1776150140921,-1267.12065914,0.00045201,120]
[420485823,1776150140955,-631.29,0.00045201,120]
[420485824,1776150140989,-1008.00484719,0.00045201,120]
[420485825,1776150141024,-2904.63749079,0.00045201,30]
[420485826,1776150141060,-1140.48906696,0.00045201,120]
[420485827,1776150141091,-3181.87927643,0.00045201,30]
[420485828,1776150141124,-1792.88947671,0.00045201,30]
[420485829,1776150141176,-858.78310845,0.00045201,30]
[420485830,1776150141215,-2104.93043012,0.00045201,120]
[420485831,1776150141281,-1172.30667156,0.00045201,120]
[420485832,1776150141323,-4901.4494342,0.00045201,30]
[420485833,1776150141369,-228.79432193,0.00045201,120]
[420485834,1776150141410,-1329.999999,0.00045201,120]
[420485835,1776150141452,-167.65533377,0.00045201,30]
[420485836,1776150141490,-1857.63264038,0.00045201,120]
[420485837,1776150141532,-283.70693912,0.00045201,120]
[420485838,1776150141567,-1786.94996684,0.00045201,120]
[420485839,1776150141601,-2620.57188936,0.00045201,120]
[420485840,1776150141640,-3159.84903734,0.00045201,30]
[420485841,1776150141674,-1500.140065,0.00045201,30]
[420485842,1776150141719,-631.29,0.00045201,120]
[420485843,1776150141773,-202.97171544,0.00045201,120]
[420485844,1776150141808,-1085.36347245,0.00045201,120]
[420485845,1776150141842,-490.6005946,0.00045201,120]
[420485846,1776150141895,-270.0437005,0.00045201,120]
[420485847,1776150141933,-185.76174658,0.00045201,30]
[420485848,1776150141981,-274.5548019,0.00045201,120]
[420485849,1776150142016,-447.98482057,0.00045201,120]
[420485850,1776150142046,-3230.12189627,0.00045201,120]
[420485851,1776150142089,-183.34,0.00045201,30]
[420485852,1776150142188,-218.6,0.00045201,30]
[420485853,1776150142225,-158.64968451,0.00045201,120]
[420485854,1776150142281,-570.24,0.00045201,30]
[420485855,1776150142326,-1414.61375737,0.00045201,30]
[420485856,1776150142391,-782.74779697,0.00045201,60]
[420485857,1776150142445,-601.15889409,0.00045201,120]
[420485858,1776150142493,-2618.57560488,0.00045201,120]
[420485859,1776150142537,-631.29,0.00045201,120]
[420485860,1776150142580,-2806.25168323,0.00045201,120]
[420485861,1776150142620,-728.56555095,0.00045201,120]
[420485862,1776150142654,-1336.6557431,0.00045201,120]
[420485863,1776150142694,-2910.3997206,0.00045201,120]
[420485864,1776150142737,-687.34071755,0.00045201,90]
[420485865,1776150142784,-1039.74376639,0.00045201,120]
[420485866,1776150142822,-205.86753343,0.00045201,120]
[420485867,1776150142866,-1061.14621434,0.00045201,120]
[420485868,1776150142916,-501.00374003,0.00045201,120]
[420485869,1776150142960,-1734.01034665,0.00045201,30]
[420485870,1776150143012,-549.0,0.00045201,30]
[420485871,1776150143051,-15822.15225668,0.00045201,120]
[420485872,1776150143095,-152.56212679,0.00045201,30]
[420485873,1776150143143,-286.16477412,0.00045201,30]
[420485874,1776150143193,-1815.58062538,0.00045201,120]
[420485875,1776150143236,-1004.61414686,0.00045201,120]
[420485876,1776150143272,-188.48340015,0.00045201,120]
[420485877,1776150143311,-198.28875754,0.00045201,120]
[420485878,1776150143343,-1311.78168913,0.00045201,120]
[420485879,1776150143390,-2460.54370872,0.00045201,120]
[420485880,1776150143428,-1004.59980196,0.00045201,120]
[420485881,1776150143464,-631.29,0.00045201,120]
[420485882,1776150143818,-16242.83465732,0.00045201,120]
[420485883,1776150143854,-2000.0,0.00045201,120]
[420485884,1776150143913,-631.29,0.00045201,120]
[420485885,1776150143951,-2034.9995831,0.00045201,120]
[420485886,1776150143990,-631.29,0.00045201,120]
[420485887,1776150144026,-631.29,0.00045201,120]
[420485888,1776150144075,-631.29,0.00045201,120]
[420485889,1776150144107,-187.5,0.00045201,120]
[420485890,1776150144150,-631.29,0.00045201,120]
[420485891,1776150144179,-500.0,0.00045201,120]
[420485892,1776150144229,-975.6876932,0.00045201,120]
[420485893,1776150144260,-631.29,0.00045201,120]
[420485894,1776150144294,-631.29,0.00045201,120]
[420485895,1776150144337,-330.0004591,0.00045201,120]
[420485896,1776150144370,-187.5,0.00045201,120]
[420485897,1776150144424,-221.095125,0.00045201,120]
[420485898,1776150144465,-172.5617894,0.00045201,120]
[420485899,1776150144505,-631.29,0.00045201,120]
[420485900,1776150144561,-160414.51702849,0.00045201,120]
[420485901,1776150146631,2500.0,8.657e-05,2]
[420485902,1776150156327,-39585.48297151,0.00045201,120]
[420485903,1776150156385,-187.5,0.00045201,120]
[420485904,1776150156422,-500.0,0.00045201,120]
[420485905,1776150156458,-631.29,0.00045201,120]
[420485906,1776150156492,-250.0,0.00045201,120]
[420485907,1776150156523,-500.0,0.00045201,120]
[420485908,1776150156556,-500.0,0.00045201,120]
[420485909,1776150156583,-600.0,0.00045201,120]
[420485910,1776150156616,-500.0,0.00045201,120]
[420485911,1776150156651,-600.0,0.00045201,120]
[420485912,1776150156682,-500.0,0.00045201,120]
[420485913,1776150156719,-187.5,0.00045201,120]
[420485914,1776150156750,-500.0,0.00045201,120]
[420485915,1776150156783,-500.0,0.00045201,120]
[420485916,1776150156810,-600.0,0.00045201,120]
[420485917,1776150156845,-631.29,0.00045201,120]
[420485918,1776150156877,-500.0,0.00045201,120]
[420485919,1776150156905,-500.0,0.00045201,120]
[420485920,1776150156936,-600.0,0.00045201,120]
[420485921,1776150157373,-520.8790131,0.00045201,120]
[420485922,1776150157455,-574.4763969,0.00045201,120]
[420485923,1776150157529,-500.0,0.00045201,120]
[420485924,1776150157581,-600.0,0.00045201,120]
[420485925,1776150157620,-500.0,0.00045201,120]
[420485926,1776150157662,-600.0,0.00045201,120]